fUST/lending_fUST_20250627
["ID","MTS","AMOUNT","RATE_DAILY","PERIOD"]
[368059479,1751012858076,-500.0,0.00019177,2]
[368059480,1751012858101,-589.97454785,0.00019177,2]
[368059481,1751012858124,-500.0,0.00019177,2]
[368059482,1751012858145,-500.0,0.00019177,2]
[368059483,1751012858170,-500.0,0.00019177,2]
[368059484,1751012858191,-500.0,0.00019177,2]
[368059485,1751012858213,-500.0,0.00019177,2]
[368059486,1751012858240,-233.87190784,0.00019177,2]
[368059487,1751012858267,-500.0,0.00019177,2]
[368059488,1751012858290,-500.0,0.00019177,2]
[368059490,1751012858314,-500.0,0.00019177,2]
[368059492,1751012858337,-200.0,0.00019177,2]
[368059495,1751012858360,-500.0,0.00019177,2]
[368059497,1751012858383,-458.46857974,0.00019177,2]
[368059500,1751012858410,-500.0,0.00019177,2]
[368059503,1751012858435,-500.0,0.00019177,2]
[368059506,1751012858460,-500.0,0.00019177,2]
[368059509,1751012858484,-500.0,0.00019177,2]
[368059511,1751012858506,-499.99999999,0.00019177,2]
[368059512,1751012858529,-188.66948886,0.00019177,2]
[368059513,1751012858554,-211.15896566,0.00019177,2]
[368059514,1751012858578,-500.0,0.00019177,2]
[368059515,1751012858602,-500.0,0.00019177,2]
[368059516,1751012858627,-500.0,0.00019177,2]
[368059517,1751012858651,-500.0,0.00019177,2]
[368059518,1751012858675,-500.0,0.00019177,2]
[368059521,1751012858698,-480.79075775,0.00019177,2]
[368059523,1751012858719,-455.09457182,0.00019178,2]
[368059525,1751012858739,-461.37481612,0.00019178,2]
[368059527,1751012858759,-460.0,0.00019178,2]
[368059528,1751012858779,-460.0,0.00019178,2]
[368059529,1751012858800,-254.85620083,0.00019178,2]
[368059530,1751012858820,-462.37411969,0.00019178,2]
[368059531,1751012858842,-460.0,0.00019178,2]
[368059532,1751012858863,-460.0,0.00019178,2]
[368059533,1751012858884,-222.20118883,0.00019178,2]
[368059534,1751012858906,-460.0,0.00019178,2]
[368059535,1751012858928,-460.0,0.00019178,2]
[368059536,1751012858951,-368.96860853,0.00019178,2]
[368059537,1751012858972,-460.0,0.00019178,2]
[368059538,1751012858994,-229.90573568,0.00019178,2]
[368059539,1751012859016,-311.97023456,0.00019178,2]
[368059540,1751012859038,-460.0,0.00019178,2]
[368059541,1751012859059,-460.0,0.00019178,2]
[368059542,1751012859080,-460.0,0.00019178,2]
[368059543,1751012859101,-554.30139203,0.00019178,2]
[368059544,1751012859123,-460.0,0.00019178,2]
[368059545,1751012859144,-460.0,0.00019178,2]
[368059546,1751012859165,-374.76230551,0.00019178,2]
[368059547,1751012859186,-370.0,0.00019178,2]
[368059548,1751012859218,-460.0,0.00019178,2]
[368059549,1751012859239,-460.0,0.00019178,2]
[368059550,1751012859261,-460.0,0.00019178,2]
[368059551,1751012859283,-460.0,0.00019178,2]
[368059552,1751012859312,-460.0,0.00019178,2]
[368059553,1751012859339,-460.0,0.00019178,2]
[368059554,1751012859365,-460.0,0.00019178,2]
[368059555,1751012859391,-500.0,0.00019178,2]
[368059556,1751012859419,-500.0,0.00019178,2]
[368059557,1751012859447,-500.0,0.00019178,2]
[368059558,1751012859475,-223.4,0.00019178,2]
[368059559,1751012859502,-500.0,0.00019178,2]
[368059560,1751012859530,-460.0,0.00019178,2]
[368059561,1751012859555,-375.86,0.00019178,2]
[368059562,1751012859583,-602.59,0.00019178,2]
[368059563,1751012859608,-460.0,0.00019178,2]
[368059564,1751012859640,-460.0,0.00019178,2]
[368059565,1751012859668,-460.0,0.00019178,2]
[368059566,1751012859694,-460.0,0.00019178,2]
[368059567,1751012859719,-460.0,0.00019178,2]
[368059568,1751012859745,-509.63652712,0.00019178,2]
[368059569,1751012859772,-496.86,0.00019178,2]
[368059570,1751012859800,-460.0,0.00019178,2]
[368059571,1751012859830,-574.51,0.00019178,2]
[368059572,1751012859860,-460.0,0.00019178,2]
[368059573,1751012859890,-500.0,0.00019178,2]
[368059574,1751012859916,-278.88833942,0.00019178,2]
[368059575,1751012859940,-460.0,0.00019178,2]
[368059576,1751012859964,-460.0,0.00019178,2]
[368059577,1751012859992,-460.0,0.00019178,2]
[368059578,1751012860020,-460.0,0.00019178,2]
[368059579,1751012860046,-1210.92,0.00019178,2]
[368059580,1751012860074,-460.0,0.00019178,2]
[368059581,1751012860100,-460.0,0.00019178,2]
[368059582,1751012860126,-460.0,0.00019178,2]
[368059583,1751012860151,-460.0,0.00019178,2]
[368059584,1751012860174,-460.0,0.00019178,2]
[368059585,1751012860200,-460.0,0.00019178,2]
[368059586,1751012860225,-460.0,0.00019178,2]
[368059587,1751012860256,-2737.71,0.00019178,2]
[368059588,1751012860282,-460.0,0.00019178,2]
[368059589,1751012860307,-460.0,0.00019178,2]
[368059590,1751012860332,-460.0,0.00019178,2]
[368059591,1751012860358,-729.97,0.00019178,2]
[368059592,1751012860385,-543.02,0.00019178,2]
[368059593,1751012860412,-460.0,0.00019178,2]
[368059594,1751012860438,-460.0,0.00019178,2]
[368059595,1751012860462,-460.0,0.00019178,2]
[368059597,1751012860489,-465.72,0.00019178,2]
[368059598,1751012860512,-460.0,0.00019178,2]
[368059599,1751012860537,-553.95090805,0.00019178,2]
[368059600,1751012860562,-124.91850034,0.00019178,2]
[368059683,1751012932638,-4437.0,0.00017989,2]
[368059684,1751012950551,-133.44544265,0.00017989,2]
[368059685,1751012950575,-300.0,0.00019177,2]
[368059686,1751012950599,-460.0,0.00019178,2]
[368059687,1751012950626,-460.0,0.00019178,2]
[368059688,1751012950652,-451.85607356,0.00019178,2]
[368059689,1751012950676,-515.76,0.00019178,2]
[368059690,1751012950699,-460.0,0.00019178,2]
[368059691,1751012950722,-396.45385479,0.00019178,2]
[368059692,1751012950744,-487.55,0.00019178,2]
[368059693,1751012950769,-460.0,0.00019178,2]
[368059694,1751012950793,-563.54,0.00019178,2]
[368059695,1751012950817,-576.95256585,0.00019178,2]
[368059696,1751012950839,-460.0,0.00019178,2]
[368059697,1751012950862,-460.0,0.00019178,2]
[368059698,1751012950884,-460.0,0.00019178,2]
[368059699,1751012950906,-2810.22,0.00019178,2]
[368059700,1751012950929,-2544.22206315,0.00019178,2]
[368059701,1751012955200,-918.13793685,0.00019178,2]
[368059702,1751012955224,-2081.63,0.00019178,2]
[368059703,1751012955246,-460.0,0.00019178,2]
[368059704,1751012955267,-460.0,0.00019178,2]
[368059705,1751012955288,-460.0,0.00019178,2]
[368059706,1751012955315,-460.0,0.00019178,2]
[368059707,1751012955337,-460.0,0.00019178,2]
[368059708,1751012955362,-460.0,0.00019178,2]
[368059709,1751012955386,-460.0,0.00019178,2]
[368059710,1751012955408,-460.0,0.00019178,2]
[368059711,1751012955436,-460.0,0.00019178,2]
[368059712,1751012955459,-460.0,0.00019178,2]
[368059713,1751012955482,-460.0,0.00019178,2]
[368059714,1751012955504,-460.0,0.00019178,2]
[368059715,1751012955526,-460.0,0.00019178,2]
[368059716,1751012955547,-460.0,0.00019178,2]
[368059717,1751012955571,-2258.3,0.00019178,2]
[368059718,1751012955593,-460.0,0.00019178,2]
[368059719,1751012955613,-460.0,0.00019178,2]
[368059720,1751012955634,-460.0,0.00019178,2]
[368059721,1751012955659,-1941.06,0.00019178,2]
[368059722,1751012955680,-832.55,0.00019178,2]
[368059723,1751012955701,-500.0,0.00019178,2]
[368059724,1751012955722,-500.0,0.00019178,2]
[368059725,1751012955743,-460.0,0.00019178,2]
[368059726,1751012955763,-460.0,0.00019178,2]
[368059727,1751012955783,-623.89917797,0.00019178,2]
[368059728,1751012955806,-460.0,0.00019178,2]
[368059729,1751012955829,-563.64,0.00019178,2]
[368059730,1751012955852,-460.0,0.00019178,2]
[368059731,1751012955874,-460.0,0.00019178,2]
[368059732,1751012955904,-460.0,0.00019178,2]
[368059733,1751012955928,-462.59059617,0.00019178,2]
[368059734,1751012955952,-460.0,0.00019178,2]
[368059735,1751012955974,-460.0,0.00019178,2]
[368059736,1751012955996,-460.0,0.00019178,2]
[368059737,1751012956019,-460.0,0.00019178,2]
[368059738,1751012956043,-460.0,0.00019178,2]
[368059739,1751012956066,-460.0,0.00019178,2]
[368059740,1751012956087,-460.0,0.00019178,2]
[368059741,1751012956111,-460.0,0.00019178,2]
[368059742,1751012956133,-1156.73,0.00019178,2]
[368059743,1751012956158,-460.0,0.00019178,2]
[368059744,1751012956179,-460.0,0.00019178,2]
[368059745,1751012956202,-725.63,0.00019178,2]
[368059746,1751012956224,-460.0,0.00019178,2]
[368059747,1751012956248,-460.0,0.00019178,2]
[368059748,1751012956270,-460.0,0.00019178,2]
[368059749,1751012956292,-1333.47,0.00019178,2]
[368059750,1751012956315,-1306.14,0.00019178,2]
[368059751,1751012956340,-460.0,0.00019178,2]
[368059752,1751012956364,-2825.1,0.00019178,2]
[368059753,1751012956385,-460.0,0.00019178,2]
[368059754,1751012956408,-675.21,0.00019178,2]
[368059755,1751012956432,-460.0,0.00019178,2]
[368059756,1751012956454,-460.0,0.00019178,2]
[368059757,1751012956476,-460.0,0.00019178,2]
[368059758,1751012956498,-460.0,0.00019178,2]
[368059759,1751012956522,-460.0,0.00019178,2]
[368059760,1751012956544,-3087.13,0.00019178,2]
[368059761,1751012956564,-534.67,0.00019178,2]
[368059762,1751012956587,-497.18,0.00019178,2]
[368059763,1751012956607,-500.0,0.00019178,2]
[368059764,1751012956628,-460.0,0.00019178,2]
[368059765,1751012956648,-460.0,0.00019178,2]
[368059766,1751012956668,-460.0,0.00019178,2]
[368059767,1751012956688,-460.0,0.00019178,2]
[368059768,1751012956708,-460.0,0.00019178,2]
[368059769,1751012956728,-335.08149966,0.00019178,2]
[368059770,1751012956749,-460.0,0.00019178,2]
[368059771,1751012956771,-234.16,0.00019178,2]
[368059772,1751012956792,-460.0,0.00019178,2]
[368059773,1751012956813,-903.02,0.00019178,2]
[368059774,1751012956834,-978.89,0.00019178,2]
[368059775,1751012956854,-460.0,0.00019178,2]
[368059776,1751012956874,-460.0,0.00019178,2]
[368059777,1751012956895,-460.0,0.00019178,2]
[368059778,1751012956917,-460.0,0.00019178,2]
[368059779,1751012956938,-460.0,0.00019178,2]
[368059780,1751012956963,-1526.64,0.00019178,2]
[368059781,1751012956985,-604.66,0.00019178,2]
[368059782,1751012957008,-460.0,0.00019178,2]
[368059783,1751012957028,-500.0,0.00019178,2]
[368059784,1751012957048,-460.0,0.00019451,2]
[368059785,1751012957069,-460.0,0.00019452,2]
[368059786,1751012957090,-460.0,0.00019452,2]
[368059787,1751012957111,-460.0,0.00019452,2]
[368059788,1751012957132,-460.0,0.00019452,2]
[368059789,1751012957156,-460.0,0.00019452,2]
[368059790,1751012957177,-460.0,0.00019452,2]
[368059791,1751012957202,-602.59,0.00019452,2]
[368059792,1751012957223,-460.0,0.00019452,2]
[368059793,1751012957244,-460.0,0.00019452,2]
[368059794,1751012957266,-460.0,0.00019452,2]
[368059795,1751012957289,-460.0,0.00019452,2]
[368059796,1751012957309,-496.86,0.00019452,2]
[368059797,1751012957331,-460.0,0.00019452,2]
[368059798,1751012957351,-460.0,0.00019452,2]
[368059799,1751012957372,-460.0,0.00019452,2]
[368059800,1751012957393,-460.0,0.00019452,2]
[368059801,1751012957414,-460.0,0.00019452,2]
[368059802,1751012957439,-729.97,0.00019452,2]
[368059803,1751012957462,-460.0,0.00019452,2]
[368059804,1751012957483,-460.0,0.00019452,2]
[368059805,1751012957503,-460.0,0.00019452,2]
[368059806,1751012957526,-460.0,0.00019452,2]
[368059807,1751012957549,-515.76,0.00019452,2]
[368059808,1751012957570,-460.0,0.00019452,2]
[368059809,1751012957591,-487.55,0.00019452,2]
[368059810,1751012957613,-563.54,0.00019452,2]
[368059811,1751012957634,-460.0,0.00019452,2]
[368059812,1751012957655,-460.0,0.00019452,2]
[368059813,1751012957676,-460.0,0.00019452,2]
[368059814,1751012957696,-2810.22,0.00019452,2]
[368059815,1751012957716,-3462.36,0.00019452,2]
[368059816,1751012957738,-2081.63,0.00019452,2]
[368059817,1751012957758,-460.0,0.00019452,2]
[368059818,1751012957780,-460.0,0.00019452,2]
[368059819,1751012957802,-460.0,0.00019452,2]
[368059820,1751012957823,-186.66845296,0.00019452,2]
[368059821,1751012957843,-460.0,0.00019452,2]
[368059822,1751012957863,-460.0,0.00019452,2]
[368059823,1751012957885,-460.0,0.00019452,2]
[368059824,1751012957905,-460.0,0.00019452,2]
[368059825,1751012957928,-2258.3,0.00019452,2]
[368059826,1751012957952,-460.0,0.00019452,2]
[368059827,1751012957975,-1941.06,0.00019452,2]
[368059828,1751012957998,-832.55,0.00019452,2]
[368059829,1751012958020,-460.0,0.00019452,2]
[368059830,1751012958042,-563.64,0.00019452,2]
[368059831,1751012958065,-460.0,0.00019452,2]
[368059832,1751012958087,-460.0,0.00019452,2]
[368059833,1751012958110,-460.0,0.00019452,2]
[368059834,1751012958132,-460.0,0.00019452,2]
[368059835,1751012958154,-460.0,0.00019452,2]
[368059836,1751012958176,-460.0,0.00019452,2]
[368059837,1751012958198,-460.0,0.00019452,2]
[368059838,1751012958219,-460.0,0.00019452,2]
[368059839,1751012958240,-460.0,0.00019452,2]
[368059840,1751012958262,-1156.73,0.00019452,2]
[368059841,1751012958284,-460.0,0.00019452,2]
[368059842,1751012958307,-460.0,0.00019452,2]
[368059843,1751012958330,-725.63,0.00019452,2]
[368059844,1751012958353,-460.0,0.00019452,2]
[368059845,1751012958375,-460.0,0.00019452,2]
[368059846,1751012958399,-1333.47,0.00019452,2]
[368059847,1751012958421,-1306.14,0.00019452,2]
[368059848,1751012958448,-460.0,0.00019452,2]
[368059849,1751012958474,-2825.1,0.00019452,2]
[368059850,1751012958498,-675.21,0.00019452,2]
[368059851,1751012958524,-226.2393405,0.00019452,2]
[368059852,1751012958547,-460.0,0.00019452,2]
[368059853,1751012958725,-460.0,0.00019452,2]
[368059854,1751012958748,-3087.13,0.00019452,2]
[368059855,1751012958772,-497.18,0.00019452,2]
[368059856,1751012958794,-460.0,0.00019452,2]
[368059857,1751012958817,-460.0,0.00019452,2]
[368059858,1751012958839,-460.0,0.00019452,2]
[368059859,1751012958861,-460.0,0.00019452,2]
[368059860,1751012958883,-460.0,0.00019452,2]
[368059861,1751012958905,-460.0,0.00019452,2]
[368059862,1751012958927,-460.0,0.00019452,2]
[368059863,1751012958949,-903.02,0.00019452,2]
[368059864,1751012958972,-978.89,0.00019452,2]
[368059865,1751012958995,-460.0,0.00019452,2]
[368059866,1751012959017,-460.0,0.00019452,2]
[368059867,1751012959039,-460.0,0.00019452,2]
[368059868,1751012959060,-1526.64,0.00019452,2]
[368059869,1751012959083,-604.66,0.00019452,2]
[368059870,1751012959105,-460.0,0.00019452,2]
[368059871,1751012959128,-502.02669137,0.00019705,2]
[368059872,1751012959148,-500.0,0.00019712,2]
[368059873,1751012959168,-398.33270411,0.00019725,2]
[368059874,1751012959188,-500.0,0.00019725,2]
[368059875,1751012959210,-460.0,0.00019726,2]
[368059876,1751012959234,-460.0,0.00019726,2]
[368059877,1751012959256,-460.0,0.00019726,2]
[368059878,1751012959277,-602.59,0.00019726,2]
[368059879,1751012959298,-460.0,0.00019726,2]
[368059880,1751012959320,-460.0,0.00019726,2]
[368059881,1751012959342,-553.55998456,0.00019726,2]
[368059882,1751012959363,-460.0,0.00019726,2]
[368059883,1751012959382,-496.86,0.00019726,2]
[368059884,1751012959403,-460.0,0.00019726,2]
[368059885,1751012959429,-729.97,0.00019726,2]
[368059886,1751012959452,-460.0,0.00019726,2]
[368059887,1751012959475,-515.76,0.00019726,2]
[368059888,1751012959496,-460.0,0.00019726,2]
[368059889,1751012959518,-487.55,0.00019726,2]
[368059890,1751012959540,-563.54,0.00019726,2]
[368059891,1751012959564,-460.0,0.00019726,2]
[368059892,1751012959586,-460.0,0.00019726,2]
[368059893,1751012959608,-460.0,0.00019726,2]
[368059894,1751012959630,-2810.22,0.00019726,2]
[368059895,1751012959652,-3462.36,0.00019726,2]
[368059896,1751012959674,-2081.63,0.00019726,2]
[368059897,1751012959695,-430.78595356,0.00019726,2]
[368059898,1751012959718,-460.0,0.00019726,2]
[368059899,1751012959739,-460.0,0.00019726,2]
[368059900,1751012959760,-460.0,0.00019726,2]
[368059901,1751012959781,-460.0,0.00019726,2]
[368059902,1751012959803,-2258.3,0.00019726,2]
[368059903,1751012959826,-460.0,0.00019726,2]
[368059904,1751012959850,-1941.06,0.00019726,2]
[368059905,1751012959872,-832.55,0.00019726,2]
[368059906,1751012959894,-460.0,0.00019726,2]
[368059907,1751012959918,-563.64,0.00019726,2]
[368059908,1751012959941,-460.0,0.00019726,2]
[368059909,1751012959964,-460.0,0.00019726,2]
[368059910,1751012959985,-478.25,0.00019726,2]
[368059911,1751012960008,-460.0,0.00019726,2]
[368059912,1751012960031,-460.0,0.00019726,2]
[368059913,1751012960053,-460.0,0.00019726,2]
[368059914,1751012960075,-460.0,0.00019726,2]
[368059915,1751012960098,-1156.73,0.00019726,2]
[368059916,1751012960120,-460.0,0.00019726,2]
[368059917,1751012960142,-460.0,0.00019726,2]
[368059918,1751012960165,-725.63,0.00019726,2]
[368059919,1751012960187,-460.0,0.00019726,2]
[368059920,1751012960209,-1333.47,0.00019726,2]
[368059921,1751012960232,-1306.14,0.00019726,2]
[368059922,1751012960254,-460.0,0.00019726,2]
[368059923,1751012960276,-2825.1,0.00019726,2]
[368059924,1751012960298,-675.21,0.00019726,2]
[368059925,1751012960319,-300.45356254,0.00019726,2]
[368059926,1751012960342,-460.0,0.00019726,2]
[368059927,1751012960364,-3087.13,0.00019726,2]
[368059928,1751012960386,-497.18,0.00019726,2]
[368059929,1751012960408,-460.0,0.00019726,2]
[368059930,1751012960429,-460.0,0.00019726,2]
[368059931,1751012960456,-460.0,0.00019726,2]
[368059932,1751012960478,-460.0,0.00019726,2]
[368059933,1751012960501,-460.0,0.00019726,2]
[368059934,1751012960524,-405.56325971,0.00019726,2]
[368060029,1751013032353,-1200.0,0.00019177,2]
[368060030,1751013032363,-300.0,0.00019177,2]
[368060031,1751013032372,-240.0,0.00019177,2]
[368060032,1751013032382,-300.0,0.00019177,2]
[368060033,1751013032391,-460.0,0.00019178,2]
[368060034,1751013032401,-460.0,0.00019178,2]
[368060035,1751013032410,-460.0,0.00019178,2]
[368060036,1751013032419,-460.0,0.00019178,2]
[368060037,1751013032429,-221.81679866,0.00019178,2]
[368060038,1751013032438,-463.04237398,0.00019178,2]
[368060039,1751013032447,-460.0,0.00019178,2]
[368060040,1751013032456,-497.34911639,0.00019178,2]
[368060041,1751013032465,-487.81,0.00019178,2]
[368060043,1751013032481,-460.0,0.00019178,2]
[368060045,1751013032491,-460.0,0.00019178,2]
[368060047,1751013032500,-129.76872102,0.00019178,2]
[368060050,1751013032519,-330.23127898,0.00019178,2]
[368060052,1751013032528,-460.0,0.00019178,2]
[368060054,1751013032537,-2038.61,0.00019178,2]
[368060056,1751013032547,-1735.87,0.00019178,2]
[368060058,1751013032556,-460.0,0.00019178,2]
[368060060,1751013032566,-455.08980676,0.00019178,2]
[368060062,1751013032575,-460.0,0.00019178,2]
[368060064,1751013032584,-460.0,0.00019178,2]
[368060065,1751013032594,-2211.91,0.00019178,2]
[368060066,1751013032603,-460.0,0.00019178,2]
[368060067,1751013032612,-556.5,0.00019178,2]
[368060068,1751013032621,-460.0,0.00019178,2]
[368060069,1751013032631,-460.0,0.00019178,2]
[368060070,1751013032640,-460.0,0.00019178,2]
[368060071,1751013032649,-460.0,0.00019178,2]
[368060072,1751013032658,-460.0,0.00019178,2]
[368060073,1751013032668,-460.0,0.00019178,2]
[368060074,1751013032677,-566.05,0.00019178,2]
[368060075,1751013032687,-460.0,0.00019178,2]
[368060076,1751013032697,-460.0,0.00019178,2]
[368060077,1751013032707,-460.0,0.00019178,2]
[368060079,1751013032717,-460.0,0.00019452,2]
[368060080,1751013032727,-460.0,0.00019452,2]
[368060081,1751013032736,-460.0,0.00019452,2]
[368060082,1751013032746,-487.81,0.00019452,2]
[368060083,1751013032756,-574.64628301,0.00019452,2]
[368060084,1751013032766,-460.0,0.00019452,2]
[368060085,1751013032775,-2038.61,0.00019452,2]
[368060086,1751013032784,-1735.87,0.00019452,2]
[368060087,1751013032794,-460.0,0.00019452,2]
[368060088,1751013032803,-460.0,0.00019452,2]
[368060089,1751013032812,-2117.90880252,0.00019452,2]
[368060090,1751013032824,-94.00119748,0.00019452,2]
[368060091,1751013032833,-436.31,0.00019452,2]
[368060092,1751013032843,-556.5,0.00019452,2]
[368060093,1751013032852,-460.0,0.00019452,2]
[368060094,1751013032861,-460.0,0.00019452,2]
[368060095,1751013032870,-460.0,0.00019452,2]
[368060096,1751013032880,-460.0,0.00019452,2]
[368060097,1751013032889,-566.05,0.00019452,2]
[368060098,1751013032900,-460.0,0.00019452,2]
[368060099,1751013032909,-460.0,0.00019452,2]
[368060100,1751013032919,-647.47714801,0.00019626,2]
[368060101,1751013032928,-54.43674029,0.00019726,2]
[368060102,1751013032938,-460.0,0.00019726,2]
[368060103,1751013032947,-903.02,0.00019726,2]
[368060104,1751013032956,-978.89,0.00019726,2]
[368060105,1751013032966,-460.0,0.00019726,2]
[368060106,1751013032976,-460.0,0.00019726,2]
[368060107,1751013032986,-460.0,0.00019726,2]
[368060108,1751013032995,-1526.64,0.00019726,2]
[368060109,1751013033005,-604.66,0.00019726,2]
[368060110,1751013033015,-460.0,0.00019726,2]
[368060111,1751013033025,-384.15,0.00019726,2]
[368060112,1751013033035,-460.0,0.00019726,2]
[368060113,1751013033044,-460.0,0.00019726,2]
[368060114,1751013033054,-487.81,0.00019726,2]
[368060115,1751013033064,-460.0,0.00019726,2]
[368060116,1751013033074,-2038.61,0.00019726,2]
[368060117,1751013033084,-1735.87,0.00019726,2]
[368060118,1751013033094,-460.0,0.00019726,2]
[368060119,1751013033103,-460.0,0.00019726,2]
[368060120,1751013033113,-2211.91,0.00019726,2]
[368060121,1751013033123,-556.5,0.00019726,2]
[368060122,1751013033133,-460.0,0.00019726,2]
[368060123,1751013033142,-460.0,0.00019726,2]
[368060124,1751013033152,-460.0,0.00019726,2]
[368060125,1751013033162,-221.67730208,0.00019726,2]
[368060159,1751013038041,-460.0,0.00019452,2]
[368060161,1751013038051,-500.0,0.00019725,2]
[368060163,1751013038060,-170.77446522,0.00019725,2]
[368060171,1751013038255,-2060.1,0.00019178,2]
[368060172,1751013038265,-61.44492899,0.00019725,2]
[368060173,1751013038274,-357.18474063,0.00019725,2]
[368060174,1751013038283,-217.60761997,0.00019725,2]
[368060175,1751013038292,-344.37269792,0.00019726,2]
[368060176,1751013038302,-460.0,0.00019726,2]
[368060177,1751013038311,-460.0,0.00019726,2]
[368060178,1751013038320,-460.0,0.00019726,2]
[368060179,1751013038329,-772.0,0.00019744,2]
[368060180,1751013038338,-772.0,0.00019839,2]
[368060181,1751013038347,-6440.58832555,0.000199,2]
[368060182,1751013038356,-399.0,0.0001998,2]
[368060183,1751013038365,-193.08,0.0001998,3]
[368060184,1751013038375,-579.24,0.0001999,3]
[368060185,1751013038384,-100000.0,0.0001999,2]
[368060186,1751013038393,-305.39710031,0.00019995,2]
[368060187,1751013038402,-460.0,0.0002,2]
[368060188,1751013038411,-602.59,0.0002,2]
[368060189,1751013038420,-496.86,0.0002,2]
[368060190,1751013038429,-460.0,0.0002,2]
[368060191,1751013038438,-487.55,0.0002,2]
[368060192,1751013038447,-460.0,0.0002,2]
[368060193,1751013038457,-460.0,0.0002,2]
[368060194,1751013038466,-460.0,0.0002,2]
[368060195,1751013038476,-2810.22,0.0002,2]
[368060196,1751013038486,-3462.36,0.0002,2]
[368060197,1751013038495,-460.0,0.0002,2]
[368060198,1751013038504,-460.0,0.0002,2]
[368060199,1751013038514,-460.0,0.0002,2]
[368060200,1751013038525,-460.0,0.0002,2]
[368060201,1751013038536,-460.0,0.0002,2]
[368060202,1751013038546,-597.41412611,0.0002,2]
[368060203,1751013038556,-1156.73,0.0002,2]
[368060204,1751013038567,-460.0,0.0002,2]
[368060205,1751013038576,-260.23572099,0.0002,2]
[368060206,1751013038585,-725.63,0.0002,2]
[368060207,1751013038596,-460.0,0.0002,2]
[368060208,1751013038605,-1333.47,0.0002,2]
[368060209,1751013038616,-1306.14,0.0002,2]
[368060210,1751013038625,-460.0,0.0002,2]
[368060211,1751013038636,-2825.1,0.0002,2]
[368060212,1751013038646,-675.21,0.0002,2]
[368060213,1751013038656,-460.0,0.0002,2]
[368060214,1751013038666,-3087.13,0.0002,2]
[368060215,1751013038675,-497.18,0.0002,2]
[368060216,1751013038684,-460.0,0.0002,2]
[368060217,1751013038695,-460.0,0.0002,2]
[368060218,1751013038704,-460.0,0.0002,2]
[368060219,1751013038712,-474.83927704,0.0002,2]
[368060220,1751013038722,-460.0,0.0002,2]
[368060221,1751013038731,-460.0,0.0002,2]
[368060222,1751013038740,-460.0,0.0002,2]
[368060223,1751013038749,-903.02,0.0002,2]
[368060224,1751013038758,-978.89,0.0002,2]
[368060225,1751013038767,-312.9693823,0.0002,2]
[368060226,1751013038777,-1526.64,0.0002,2]
[368060227,1751013038787,-500.0,0.0002,2]
[368060228,1751013038798,-604.66,0.0002,2]
[368060229,1751013038808,-460.0,0.0002,2]